bitfinex/quotes_BTCUSD_20251221
["timestamp","ask_amount","ask_price","bid_price","bid_amount"]
[1766358088612,0.00568,88654.0,88642.0,0.02481893]
[1766358088807,0.00568,88654.0,88640.0,0.01128158]
[1766358089017,0.00568,88654.0,88642.0,0.01128133]
[1766358089238,0.21935955,88656.0,88643.0,0.01353744]
[1766358089439,0.00568,88653.0,88643.0,0.02481864]
[1766358089600,0.00568,88653.0,88645.0,0.01128095]
[1766358089809,0.00568,88654.0,88646.0,0.01128082]
[1766358090117,0.02941025,88661.0,88647.0,0.01353683]
[1766358090118,0.00568,88653.0,88647.0,0.01353683]
[1766358090521,0.12743878,88662.0,88647.0,0.01353683]
[1766358090522,0.20808,88669.0,88653.0,0.00055]
[1766358090730,0.01127738,88673.0,88656.0,0.07988]
[1766358090731,0.00568,88668.0,88656.0,0.07988]
[1766358090946,0.01127738,88673.0,88655.0,0.01127967]
[1766358090947,0.01127738,88673.0,88658.0,0.07988]
[1766358090948,0.01127751,88672.0,88658.0,0.07988]
[1766358091137,0.00568,88673.0,88659.0,0.01127917]
[1766358091346,0.00568,88673.0,88654.0,0.06207861]
[1766358091347,0.01127789,88669.0,88654.0,0.0169598]
[1766358091519,0.01127789,88669.0,88654.0,0.08556]
[1766358091736,0.01127815,88667.0,88654.0,0.08556]
[1766358091997,0.05638949,88669.0,88654.0,0.005131]
[1766358092150,0.05638949,88669.0,88645.0,0.00568]
[1766358092151,0.11616,88655.0,88645.0,0.00568]
[1766358092349,0.11616,88655.0,88645.0,0.00035643]
[1766358092350,0.32424,88655.0,88645.0,0.00035643]
[1766358092548,0.20808,88655.0,88645.0,0.00035643]
[1766358092874,0.00568,88657.0,88645.0,0.00035643]
[1766358093097,0.00568,88657.0,88647.0,0.01128069]
[1766358093378,0.00568,88657.0,88646.0,0.01128082]
[1766358093595,0.00024547,88648.0,88646.0,0.01128082]
[1766358093745,4.7e-07,88648.0,88646.0,0.01128082]
[1766358094743,4.7e-07,88648.0,88646.0,0.05640412]
[1766358095517,4.7e-07,88648.0,88647.0,0.07988]
[1766358095718,0.00568,88661.0,88654.0,0.0112798]
[1766358095921,0.01127802,88668.0,88654.0,0.0112798]
[1766358095922,0.00568,88663.0,88655.0,0.01127967]
[1766358096122,0.21850751,88672.0,88655.0,0.01127967]
[1766358096484,0.21850751,88672.0,88656.0,0.07988]
[1766358096485,0.01127777,88670.0,88656.0,0.07988]
[1766358096622,0.01127789,88669.0,88656.0,0.07988]
[1766358096848,0.00027612,88657.0,88656.0,0.07988]
[1766358097050,1.2e-07,88657.0,88656.0,0.07988]
[1766358099554,1.2e-07,88657.0,88656.0,0.08556]
[1766358101209,0.01127675,88678.0,88661.0,0.07988]
[1766358101410,0.01695688,88677.0,88662.0,0.08273395]
[1766358101583,0.01695688,88677.0,88663.0,0.01127866]
[1766358101833,0.26381365,88679.0,88665.0,0.0112784]
[1766358101834,0.20743,88679.0,88665.0,0.0112784]
[1766358102040,0.06315534,88716.0,88662.0,0.01695878]
[1766358102041,0.05637741,88688.0,88668.0,0.06766769]
[1766358102247,0.01127535,88689.0,88669.0,0.01127789]
[1766358102248,0.01127586,88685.0,88669.0,0.01127789]
[1766358102440,0.01127586,88685.0,88670.0,0.01127777]
[1766358102928,0.12913586,88685.0,88670.0,0.01127777]
[1766358103190,0.01127599,88684.0,88668.0,0.00568]
[1766358103437,0.06765534,88685.0,88668.0,0.00568]
[1766358103438,0.11786,88680.0,88668.0,0.00568]
[1766358103685,0.32509,88680.0,88668.0,0.00568]
[1766358105022,0.32509,88680.0,88668.0,0.01695802]
[1766358105231,0.33636649,88680.0,88668.0,0.00568]
[1766358105409,0.01127688,88677.0,88668.0,0.005159]
[1766358105835,0.01127675,88678.0,88668.0,0.005159]
[1766358106040,0.21850675,88678.0,88668.0,0.005159]
[1766358106260,0.01127688,88677.0,88668.0,0.005159]
[1766358106602,0.20723,88677.0,88668.0,0.005159]
[1766358107115,0.21850688,88677.0,88668.0,0.005159]
[1766358107328,0.0003681,88669.0,88668.0,0.005159]
[1766358108159,0.20723,88677.0,88668.0,0.005159]
[1766358108748,0.21850688,88677.0,88668.0,0.005159]
[1766358108928,0.20723,88677.0,88668.0,0.005159]
[1766358109978,0.21850688,88677.0,88668.0,0.005159]
[1766358110133,0.20723,88677.0,88668.0,0.005159]
[1766358110953,0.01127649,88680.0,88668.0,0.005159]
[1766358110954,0.61181676,88680.0,88668.0,0.005159]
[1766358112571,0.12913624,88682.0,88668.0,0.005159]
[1766358112792,0.33636624,88682.0,88668.0,0.01643702]
[1766358113225,0.20723,88681.0,88668.0,0.01643702]
[1766358114640,0.32509,88681.0,88668.0,0.01643702]
[1766358115563,0.32509,88681.0,88668.0,0.005159]
[1766358115903,0.06765372,88687.0,88668.0,0.005159]
[1766358115904,0.01127319,88706.0,88692.0,0.12530497]
[1766358116185,0.01127268,88710.0,88681.0,0.001099]
[1766358116186,0.01127268,88710.0,88699.0,0.13216134]
[1766358116187,0.01127306,88707.0,88699.0,0.13216134]
[1766358116540,0.01127243,88712.0,88699.0,0.13216134]
[1766358116541,0.01127255,88711.0,88699.0,0.13216134]
[1766358116742,0.0112723,88713.0,88699.0,0.1312105]
[1766358116944,0.01137205,88715.0,88699.0,0.1312105]
[1766358117147,0.0019,88720.0,88715.0,0.000549]
[1766358117346,0.01127116,88722.0,88715.0,0.000549]
[1766358117554,0.01127103,88723.0,88712.0,0.11403]
[1766358117736,0.01127103,88723.0,88711.0,0.00568]
[1766358117737,0.0302184,88743.0,88711.0,0.00568]
[1766358117738,0.05635072,88730.0,88714.0,0.11403]
[1766358117942,0.01127039,88728.0,88714.0,0.11403]
[1766358118244,0.01127039,88728.0,88713.0,0.01813134]
[1766358118245,0.02426405,88734.0,88713.0,0.01813134]
[1766358118246,0.01126925,88737.0,88716.0,0.11403]
[1766358118448,0.01126925,88737.0,88713.0,0.01813134]
[1766358118449,0.01126925,88737.0,88720.0,0.11394531]
[1766358118450,0.01126938,88736.0,88720.0,0.11394531]
[1766358118621,0.01126938,88736.0,88718.0,0.0563582]
[1766358118622,0.01126951,88735.0,88718.0,0.01127166]
[1766358118845,0.01126951,88735.0,88719.0,0.01127154]
[1766358119038,0.0676159,88737.0,88719.0,0.01127154]
[1766358119253,0.05634524,88739.0,88730.0,0.01813134]
[1766358119456,0.23535344,88750.0,88730.0,0.01813134]
[1766358119457,0.23535344,88750.0,88737.0,0.00055]
[1766358119458,0.05633866,88749.0,88737.0,0.00055]
[1766358119614,0.01,88750.0,88738.0,0.00568]
[1766358119615,0.01126874,88741.0,88738.0,0.00568]
[1766358119818,0.01126874,88741.0,88738.0,0.005131]
[1766358120032,0.05634163,88745.0,88738.0,0.005131]
[1766358120383,0.20723,88764.0,88738.0,0.005131]
[1766358120384,0.20723,88764.0,88739.0,0.11403]
[1766358120385,0.01126684,88756.0,88739.0,0.11403]
[1766358120622,0.01126684,88756.0,88729.0,0.04512]
[1766358120623,0.11786,88748.0,88700.0,0.00099999]
[1766358120824,0.01813134,88754.0,88700.0,0.00099999]
[1766358120825,0.01813134,88754.0,88713.0,0.0112723]
[1766358120826,0.12913027,88729.0,88713.0,0.0112723]
[1766358121041,0.12913027,88729.0,88711.0,0.05639255]
[1766358121042,0.01127052,88727.0,88714.0,0.00568]
[1766358121242,0.21850039,88728.0,88716.0,0.01813134]
[1766358121372,0.05634888,88733.0,88716.0,0.01813134]
[1766358121373,0.01126887,88740.0,88728.0,0.00055]
[1766358121573,0.01126887,88740.0,88730.0,0.11403]
[1766358121574,0.01126912,88738.0,88730.0,0.11403]
[1766358121773,0.05634213,88744.0,88729.0,0.00568]
[1766358121774,0.01126811,88746.0,88731.0,0.13216134]
[1766358121982,0.11786,88750.0,88732.0,0.11403]
[1766358121983,0.05633802,88750.0,88732.0,0.11403]
[1766358122186,0.01126785,88748.0,88732.0,0.11403]
[1766358122388,0.00196173,88733.0,88732.0,0.11403]
[1766358122588,0.01126811,88746.0,88732.0,0.11403]
[1766358122589,0.01126798,88747.0,88732.0,0.12565676]
[1766358122795,0.01126798,88747.0,88732.0,0.11438687]
[1766358122796,0.01126849,88743.0,88732.0,0.11438687]
[1766358123002,0.01126798,88747.0,88732.0,0.11438687]
[1766358123003,0.01126912,88738.0,88732.0,0.00035687]
[1766358123204,0.01126912,88738.0,88732.0,8.7e-07]
[1766358123412,0.01126925,88737.0,88728.0,0.00473048]
[1766358123581,0.01126925,88737.0,88720.0,0.02940275]
[1766358123582,0.01127001,88731.0,88720.0,0.01813134]
[1766358123802,0.20723,88730.0,88721.0,0.00513]
[1766358124002,0.01126925,88737.0,88721.0,0.00513]
[1766358124003,0.20723,88745.0,88723.0,0.11403]
[1766358124205,0.0112676,88750.0,88737.0,0.01813134]
[1766358124523,0.01126722,88753.0,88737.0,0.02940059]
[1766358124906,0.01126747,88751.0,88738.0,0.11403]
[1766358125118,0.01126773,88749.0,88738.0,0.11403]
[1766358125331,0.06760334,88753.0,88738.0,0.11403]
[1766358125756,0.01126747,88751.0,88738.0,0.11403]
[1766358125964,0.0112676,88750.0,88738.0,0.11403]
[1766358126345,0.01126773,88749.0,88738.0,0.11403]
[1766358126783,0.00568,88757.0,88737.0,0.01813134]
[1766358126784,0.04512,88769.0,88746.0,0.12075]
[1766358126968,0.0001,88776.0,88746.0,0.12075]
[1766358126969,0.0001,88776.0,88758.0,0.01813134]
[1766358126970,0.01126582,88764.0,88758.0,0.01813134]
[1766358127230,0.01146557,88766.0,88758.0,0.01813134]
[1766358127231,0.0112657,88765.0,88758.0,0.01813134]
[1766358127471,0.01126646,88759.0,88753.0,0.00568]
[1766358127671,0.01126582,88764.0,88753.0,0.00568]
[1766358127672,0.01126595,88763.0,88753.0,0.00568]
[1766358127884,0.0002,88766.0,88754.0,0.12075]
[1766358128105,0.0002,88766.0,88753.0,0.00568]
[1766358128106,0.05631844,88781.0,88766.0,0.10939]
[1766358128312,0.05631844,88781.0,88765.0,0.01813134]
[1766358128313,0.05631844,88781.0,88768.0,0.10939]
[1766358128533,0.01126481,88772.0,88769.0,0.01813134]
[1766358128750,0.05631981,88779.0,88769.0,0.01813134]
[1766358128753,0.03008515,88848.0,88770.0,1.34669499]
[1766358128964,0.02038837,88850.0,88769.0,0.06325134]
[1766358128965,0.02038837,88850.0,88823.0,0.01125834]
[1766358128966,0.03603218,88846.0,88823.0,0.01125834]
[1766358129169,0.03603218,88846.0,88800.0,0.00099999]
[1766358129170,0.04512,88869.0,88800.0,0.00099999]
[1766358129172,0.01125365,88860.0,88835.0,0.64210482]
[1766358129387,0.01125365,88860.0,88824.0,0.10034204]
[1766358129388,0.01125264,88868.0,88839.0,0.03603218]
[1766358129619,0.41624653,88870.0,88839.0,0.03603218]
[1766358129620,0.41624653,88870.0,88850.0,0.01125492]
[1766358129836,0.01125264,88868.0,88848.0,0.01693517]
[1766358130055,0.31375434,88860.0,88849.0,0.00568]
[1766358130284,0.31375434,88860.0,88834.0,0.01125695]
[1766358130285,0.31375434,88860.0,88831.0,0.03603218]
[1766358130286,0.31375434,88860.0,88832.0,0.03603218]
[1766358130287,0.01125543,88846.0,88832.0,0.03603218]
[1766358130487,0.11905,88854.0,88833.0,0.03603218]
[1766358130488,0.12473,88845.0,88833.0,0.03603218]
[1766358130708,0.01125644,88838.0,88833.0,0.03603218]
[1766358130922,0.00568,88844.0,88833.0,0.03603218]
[1766358130924,0.0112496,88892.0,88874.0,0.01125188]
[1766358131140,0.0112496,88892.0,88867.0,0.01125277]
[1766358131141,0.05624486,88897.0,88875.0,0.0191821]
[1766358131347,0.01134846,88901.0,88887.0,0.03571541]
[1766358131557,0.0001,88901.0,88887.0,0.03571541]
[1766358131774,0.05624552,88896.0,88887.0,0.03571541]
[1766358132019,0.01124947,88893.0,88887.0,0.03575967]
[1766358132231,0.01124947,88893.0,88861.0,0.01350423]
[1766358132232,0.05624552,88896.0,88856.0,0.01125416]
[1766358132233,0.01125175,88875.0,88856.0,0.01125416]
[1766358132465,0.01124935,88894.0,88873.0,0.03603218]
[1766358132692,0.0112491,88896.0,88887.0,0.03603218]
[1766358132895,0.01124922,88895.0,88887.0,0.03603218]
[1766358133096,0.01124935,88894.0,88887.0,0.03603218]
[1766358133249,0.01124985,88890.0,88887.0,0.03603218]
[1766358133431,0.01124985,88890.0,88850.0,0.22509709]
[1766358133432,0.0112496,88892.0,88860.0,0.01125365]
[1766358133433,0.01125125,88879.0,88860.0,0.01125365]
[1766358133614,0.01125125,88879.0,88859.0,0.01125378]
[1766358133615,0.01125137,88878.0,88859.0,0.01125378]
[1766358133817,0.05625375,88883.0,88820.0,0.2]
[1766358133818,0.00572,88881.0,88873.0,0.03603218]
[1766358134030,0.01124935,88894.0,88873.0,0.04175218]
[1766358134245,0.06196621,88895.0,88873.0,0.04175218]
[1766358134452,0.05625222,88886.0,88873.0,0.04175218]
[1766358134682,7.4e-07,88883.0,88873.0,0.00572]
[1766358134889,7.4e-07,88883.0,88872.0,4.444e-05]
[1766358134890,0.01125125,88879.0,88872.0,4.444e-05]
[1766358135114,0.01125125,88879.0,88858.0,0.10134913]
[1766358135115,0.11905,88857.0,88830.0,0.04508]
[1766358135334,0.01125669,88836.0,88833.0,0.00035774]
[1766358135543,0.01125669,88836.0,88818.0,0.03603218]
[1766358135794,0.41624653,88830.0,88818.0,0.03603218]
[1766358135999,0.41624653,88830.0,88807.0,0.0149967]
[1766358136001,0.01125834,88823.0,88807.0,0.0149967]
[1766358136249,0.11905,88824.0,88812.0,0.03603218]
[1766358136250,0.41624653,88820.0,88812.0,0.03603218]
[1766358136412,0.00572,88822.0,88812.0,0.03603218]
[1766358137022,0.00572,88822.0,88807.0,0.0149967]
[1766358137023,0.01125986,88811.0,88807.0,0.0149967]
[1766358137207,0.01125986,88811.0,88761.0,0.45064614]
[1766358137209,0.05630447,88803.0,88772.0,0.04508]
[1766358137406,0.05630447,88803.0,88760.0,0.41624653]
[1766358137407,0.05630447,88803.0,88750.0,0.01913133]
[1766358137408,0.05630447,88803.0,88770.0,0.359354]
[1766358137409,0.01126265,88789.0,88770.0,0.359354]
[1766358137659,0.01126468,88773.0,88755.0,0.01126697]
[1766358137955,0.01126468,88773.0,88736.0,0.04508]
[1766358137956,0.01126468,88773.0,88750.0,0.0112676]
[1766358137957,0.11905,88766.0,88750.0,0.0112676]
[1766358138275,0.01126582,88764.0,88747.0,0.01126798]
[1766358138490,0.01126595,88763.0,88747.0,5.246e-05]
[1766358138703,0.11905,88757.0,88741.0,0.01801619]
[1766358138911,0.11905,88757.0,88700.0,0.2]
[1766358138912,0.05634247,88743.0,88721.0,0.01127128]
[1766358139114,0.64159655,88751.0,88721.0,0.00035707]
[1766358139115,0.01126938,88736.0,88721.0,0.00035707]
[1766358139322,0.00572,88735.0,88721.0,0.00035707]
[1766358139540,0.21226887,88740.0,88721.0,0.00035707]
[1766358139542,0.01126747,88751.0,88733.0,0.01126976]
[1766358139744,0.00572,88750.0,88736.0,0.01126938]
[1766358139943,0.01126697,88755.0,88737.0,0.0135231]
[1766358140163,0.01126697,88755.0,88733.0,0.01126976]
[1766358140164,0.11905,88768.0,88755.0,0.01126697]
[1766358140369,0.00099999,88830.0,88733.0,0.03605512]
[1766358140370,0.00099999,88830.0,88767.0,0.03605512]
[1766358140371,0.201,88792.0,88767.0,0.03605512]
[1766358140569,0.01126151,88798.0,88767.0,0.03605512]
[1766358140570,0.00572,88791.0,88778.0,0.01126405]
[1766358140803,0.00572,88791.0,88781.0,0.01126367]
[1766358141002,0.00572,88791.0,88779.0,0.01126392]
[1766358141226,0.11905,88788.0,88771.0,0.01126494]
[1766358141446,0.201,88778.0,88771.0,6.87e-05]
[1766358141657,0.00572,88777.0,88771.0,6.87e-05]
[1766358143573,0.00572,88777.0,88771.0,0.01133364]
[1766358144004,0.13041265,88789.0,88771.0,0.01133364]
[1766358144005,0.0001,88789.0,88772.0,0.0180233]
[1766358144208,0.00572,88788.0,88772.0,0.01126481]
[1766358144622,0.00572,88788.0,88771.0,0.01133364]
[1766358144826,0.00572,88788.0,88772.0,0.01126481]
[1766358145089,0.056316,88785.0,88771.0,6.87e-05]
[1766358145297,0.32005,88774.0,88759.0,0.01126646]
[1766358145499,0.12477,88773.0,88759.0,0.01135914]
[1766358145674,0.00082687,88760.0,88759.0,0.01135914]
[1766358145919,0.11905,88782.0,88769.0,0.01126519]
[1766358146125,0.0001,88789.0,88769.0,0.01126519]
[1766358146337,0.04508,88784.0,88773.0,0.01126468]
[1766358146545,0.00572,88788.0,88780.0,0.01126379]
[1766358146767,0.0001,88789.0,88778.0,0.0180233]
[1766358146979,0.00572,88787.0,88771.0,0.01126494]
[1766358147215,0.00572,88787.0,88773.0,0.01126468]
[1766358147424,0.00572,88787.0,88775.0,0.01126443]
[1766358147648,0.00572,88787.0,88773.0,0.01126468]
[1766358148506,0.01126367,88781.0,88752.0,0.2253447]
[1766358148707,0.32005,88777.0,88763.0,0.01126595]
[1766358148916,0.01698379,88780.0,88764.0,0.01126582]
[1766358148917,0.11905,88775.0,88764.0,0.01126582]
[1766358149122,0.11905,88775.0,88762.0,0.01126608]
[1766358149123,0.11905,88775.0,88761.0,0.0112662]
[1766358149342,0.11905,88775.0,88720.0,0.61621103]
[1766358149343,0.11905,88775.0,88752.0,0.05633664]
[1766358149344,0.11905,88769.0,88752.0,0.05633664]
[1766358149551,0.00572,88768.0,88758.0,0.01126659]
[1766358149785,0.00572,88768.0,88759.0,0.01135914]
[1766358149964,0.00572,88768.0,88764.0,0.01126582]
[1766358150163,0.00572,88768.0,88765.0,0.0112657]
[1766358150591,0.00572,88768.0,88763.0,0.01126595]
[1766358150592,0.00572,88768.0,88759.0,2.68e-06]
[1766358150593,0.11905,88766.0,88759.0,2.68e-06]
[1766358150825,0.11905,88766.0,88728.0,0.33811135]
[1766358150826,0.00572,88768.0,88734.0,0.01126963]
[1766358150827,0.11905,88751.0,88734.0,0.01126963]
[1766358151067,0.11905,88751.0,88734.0,0.00010674]
[1766358151068,0.11905,88749.0,88734.0,0.00010674]
[1766358151295,0.32005,88749.0,88734.0,0.01137637]
[1766358151542,0.0180233,88765.0,88743.0,0.01126849]
[1766358151543,0.11905,88757.0,88743.0,0.01126849]
[1766358151754,0.11905,88757.0,88734.0,0.00010674]
[1766358151755,0.201,88758.0,88742.0,0.01126862]
[1766358151756,0.0508,88756.0,88742.0,0.01126862]
[1766358151962,0.0508,88756.0,88743.0,0.01126849]
[1766358151963,0.11905,88755.0,88743.0,0.01126849]
[1766358152175,0.11905,88755.0,88739.0,0.0563446]
[1766358152176,0.11905,88755.0,88749.0,0.01126773]
[1766358152437,0.11905,88755.0,88751.0,0.01126747]
[1766358152645,0.11905,88755.0,88750.0,0.0112676]
[1766358152646,0.11905,88755.0,88748.0,0.01126785]
[1766358152848,0.11905,88755.0,88749.0,0.01126773]
[1766358153072,0.2518,88756.0,88753.0,0.01126722]
[1766358153073,0.00572,88756.0,88753.0,0.01126722]
[1766358153298,0.25378,88768.0,88742.0,0.22537216]
[1766358153299,0.04508,88768.0,88755.0,0.05633485]
[1766358153525,0.13311,88776.0,88741.0,0.0180233]
[1766358153526,0.13342675,88775.0,88762.0,0.01126608]
[1766358153754,0.22524559,88792.0,88750.0,0.64156154]
[1766358153755,0.13311,88835.0,88774.0,0.0180233]
[1766358153970,0.13311,88835.0,88826.0,0.34753]
[1766358153971,0.0112572,88832.0,88826.0,0.34753]
[1766358154189,0.00572,88834.0,88826.0,0.34753]
[1766358154190,0.01125745,88830.0,88826.0,0.34753]
[1766358154410,0.13311,88826.0,88810.0,0.01125999]
[1766358154613,0.13311,88826.0,88812.0,0.01125973]
[1766358154614,0.00572,88825.0,88812.0,0.01125973]
[1766358154818,0.00572,88825.0,88804.0,0.23093465]
[1766358154819,0.2087,88820.0,88800.0,0.0563063]
[1766358155045,0.14436973,88812.0,88794.0,0.01126202]
[1766358155268,0.00603675,88819.0,88787.0,0.01126291]
[1766358155269,0.23054062,88805.0,88787.0,0.01126291]
[1766358155472,0.00031675,88811.0,88792.0,0.01126227]
[1766358155473,0.14291,88803.0,88792.0,0.01126227]
[1766358155680,0.00572,88802.0,88791.0,0.0112624]
[1766358155881,0.00572,88802.0,88794.0,0.01126202]
[1766358156091,0.00572,88802.0,88796.0,0.01126176]
[1766358156327,0.00572,88806.0,88799.0,0.01126138]
[1766358156547,0.00572,88806.0,88800.0,0.01126126]
[1766358156748,0.26436,88815.0,88800.0,0.01126126]
[1766358156749,0.26436,88815.0,88801.0,0.01126113]
[1766358156960,0.00572,88814.0,88802.0,0.011261]
[1766358157389,0.00572,88814.0,88798.0,0.05630735]
[1766358157390,0.14291,88812.0,88793.0,0.01126214]
[1766358157622,0.01125961,88813.0,88789.0,0.01126265]
[1766358157623,0.14291,88804.0,88789.0,0.01126265]
[1766358157831,0.00572,88803.0,88791.0,0.0112624]
[1766358158037,0.011261,88802.0,88786.0,0.01126303]
[1766358158244,0.01698088,88803.0,88793.0,0.01126214]
[1766358158245,0.00572,88803.0,88793.0,0.01126214]
[1766358158446,0.00572,88803.0,88793.0,0.01136214]
[1766358158661,0.00572,88803.0,88793.0,0.06767259]
[1766358159114,0.00572,88803.0,88798.0,0.01126151]
[1766358159316,0.00572,88806.0,88798.0,0.01126151]
[1766358159523,0.00572,88806.0,88801.0,0.01126113]
[1766358159744,0.00572,88806.0,88803.0,0.01126088]
[1766358160389,0.00572,88809.0,88804.0,0.01126075]
[1766358160610,0.01125834,88823.0,88804.0,0.01126075]
[1766358160613,0.14291,88849.0,88837.0,0.01125657]
[1766358160830,0.00572,88850.0,88841.0,0.01125606]
[1766358161042,0.00572,88850.0,88837.0,0.01136331]
[1766358161043,0.00572,88850.0,88842.0,0.01125593]
[1766358161275,0.01125277,88867.0,88842.0,0.01125593]
[1766358161276,0.00572,88856.0,88853.0,0.01125454]
[1766358161513,0.00572,88859.0,88855.0,0.01125429]
[1766358161739,0.00572,88859.0,88849.0,0.01125505]
[1766358161740,0.18799,88867.0,88864.0,0.01125315]
[1766358161741,0.04508,88867.0,88864.0,0.01125315]
[1766358161966,0.04508,88867.0,88861.0,0.01125353]
[1766358161967,0.00572,88866.0,88863.0,0.01125327]
[1766358162367,0.04508,88867.0,88863.0,0.01125327]
[1766358162368,0.00572,88873.0,88863.0,0.01125327]
[1766358162581,0.00572,88873.0,88870.0,0.01125239]
[1766358162843,0.14291,88884.0,88871.0,0.01125226]
[1766358162844,0.00572,88876.0,88871.0,0.01125226]
[1766358163068,0.00572,88876.0,88870.0,0.00010674]
[1766358163275,0.00572,88876.0,88870.0,0.01135913]
[1766358163276,0.00211,88872.0,88870.0,0.01135913]
[1766358163500,0.00572,88876.0,88870.0,0.01135913]
[1766358163501,0.00572,88876.0,88870.0,0.00010674]
[1766358163713,0.00572,88876.0,88845.0,0.2251097]
[1766358163714,0.14291,88868.0,88858.0,0.01125391]
[1766358163915,0.14291,88868.0,88858.0,0.00010683]
[1766358164337,0.14322675,88868.0,88858.0,0.00010683]
[1766358164539,0.23625251,88869.0,88858.0,0.00010683]
[1766358164540,0.00572,88869.0,88858.0,0.00010683]
[1766358164950,0.01697251,88869.0,88858.0,0.00010683]
[1766358165162,0.01697251,88869.0,88862.0,0.0180233]
[1766358165386,0.01697251,88869.0,88858.0,0.00010683]
[1766358165387,0.01125277,88867.0,88858.0,0.00010683]
[1766358165592,0.01125277,88867.0,88862.0,3.3e-06]
[1766358165593,0.01125289,88866.0,88862.0,3.3e-06]
[1766358165797,0.01125302,88865.0,88858.0,0.00010683]
[1766358166002,0.0112534,88862.0,88858.0,0.00010683]
[1766358166218,0.0112534,88862.0,88845.0,0.01125555]
[1766358166219,0.0112534,88862.0,88829.0,0.22515009]
[1766358166220,0.01125505,88849.0,88831.0,0.01125733]
[1766358166423,0.05627342,88852.0,88831.0,0.01125733]
[1766358166424,0.05627342,88852.0,88835.0,0.01125682]
[1766358166425,0.01125479,88851.0,88835.0,0.01125682]
[1766358166643,0.00572,88852.0,88846.0,0.0180233]
[1766358167064,0.00572,88852.0,88834.0,0.01125695]
[1766358167280,0.15416568,88844.0,88832.0,0.01813016]
[1766358167482,0.01125593,88842.0,88832.0,0.01813016]
[1766358167690,0.01697581,88843.0,88832.0,0.01813016]
[1766358167970,0.01697581,88843.0,88819.0,0.01485]
[1766358167972,0.01697581,88843.0,88819.0,0.0180233]
[1766358167973,0.01125682,88835.0,88819.0,0.0180233]
[1766358168231,0.01125682,88835.0,88819.0,0.01813017]
[1766358168232,0.14291,88828.0,88819.0,0.01813017]
[1766358168452,0.00603675,88834.0,88819.0,0.01813017]
[1766358168453,0.00603675,88834.0,88821.0,0.01125859]
[1766358168454,0.00572,88834.0,88821.0,0.01125859]
[1766358168671,0.05627962,88843.0,88820.0,0.01125872]
[1766358168672,0.14291,88857.0,88840.0,0.01125619]
[1766358168883,0.14291,88857.0,88836.0,0.01125669]
[1766358168884,0.00572,88846.0,88843.0,0.0180233]
[1766358169317,0.00572,88846.0,88823.0,0.00977]
[1766358169318,0.01125581,88843.0,88834.0,0.0180233]
[1766358169536,0.01125581,88843.0,88820.0,0.0180233]
[1766358169537,0.15416682,88835.0,88814.0,0.06755674]
[1766358169754,0.15416682,88835.0,88807.0,0.22520519]
[1766358169755,0.14863,88834.0,88816.0,0.05629563]
[1766358169965,0.14863,88834.0,88820.0,0.0180233]
[1766358170169,0.00572,88834.0,88828.0,0.01125771]
[1766358170372,0.00572,88834.0,88829.0,0.0135091]
[1766358170607,0.00572,88834.0,88830.0,0.01125745]
[1766358171056,0.01125264,88868.0,88850.0,0.01125492]
[1766358171267,0.22501696,88883.0,88831.0,0.02928063]
[1766358171269,0.01125505,88849.0,88831.0,0.02928063]
[1766358171480,0.15416517,88848.0,88831.0,0.02928063]
[1766358171887,0.14291,88847.0,88831.0,0.02928063]
[1766358172096,0.1541653,88847.0,88831.0,0.0180233]
[1766358172312,0.00572,88851.0,88831.0,0.0180233]
[1766358172313,0.01125695,88834.0,88831.0,0.00010687]
[1766358172517,0.01125657,88837.0,88793.0,0.0001]
[1766358172518,0.01126062,88805.0,88793.0,0.0001]
[1766358172722,0.00572,88804.0,88793.0,0.0001]
[1766358172924,0.00572,88804.0,88795.0,0.01126189]
[1766358173127,0.00572,88804.0,88797.0,0.01126164]
[1766358173425,0.0001,88801.0,88797.0,0.01126164]
[1766358173634,0.0001,88801.0,88796.0,0.01126176]
[1766358173785,0.0001,88801.0,88798.0,0.01126151]
[1766358173991,0.0001,88801.0,88793.0,0.00035782]
[1766358174195,0.0001,88801.0,88796.0,0.01126176]
[1766358174492,0.0001,88801.0,88797.0,0.01126164]
[1766358174691,0.0001,88801.0,88798.0,0.01126151]
[1766358174908,0.0001,88801.0,88796.0,0.01126176]
[1766358175143,0.0138225,88812.0,88804.0,0.05630345]
[1766358175294,0.0138225,88812.0,88793.0,0.00035782]
[1766358175295,0.00572,88813.0,88811.0,0.0180233]
[1766358175497,0.06756171,88808.0,88793.0,0.00035782]
[1766358175693,0.00572,88813.0,88793.0,0.00035782]
[1766358175694,0.01126088,88803.0,88793.0,0.00035782]
[1766358175898,0.01126075,88804.0,88793.0,0.00035782]
[1766358175899,0.00572,88802.0,88793.0,0.01161996]
[1766358176110,0.00572,88802.0,88793.0,0.00035782]
[1766358177137,0.00572,88802.0,88784.0,0.01126329]
[1766358177138,0.01126164,88797.0,88781.0,0.01136367]
[1766358177415,0.01126164,88797.0,88769.0,0.22530324]
[1766358177416,0.00572,88802.0,88756.0,0.01126684]
[1766358177417,0.14291,88780.0,88756.0,0.01126684]
[1766358177622,0.01126443,88775.0,88757.0,0.01126671]
[1766358177833,0.0112643,88776.0,88757.0,0.01126671]
[1766358178086,0.0112643,88776.0,88756.0,0.07332068]
[1766358178324,0.01126455,88774.0,88757.0,0.01126671]
[1766358178540,0.01126455,88774.0,88742.0,0.22536999]
[1766358178541,0.06204003,88779.0,88747.0,0.00572]
[1766358178542,0.14291,88771.0,88747.0,0.00572]
[1766358178743,0.00010733,88780.0,88757.0,0.01126671]
[1766358178744,0.01230634,88770.0,88757.0,0.01126671]
[1766358178947,0.00572,88769.0,88755.0,0.0446233]
[1766358179147,0.00572,88769.0,88747.0,0.00572]
[1766358179148,0.01126557,88766.0,88749.0,0.01126773]
[1766358179413,0.01126557,88766.0,88746.0,0.01126811]
[1766358179414,0.21928,88766.0,88746.0,0.01126811]
[1766358179615,0.21928,88766.0,88747.0,0.0676079]
[1766358179616,0.14291,88764.0,88747.0,0.0676079]
[1766358179815,0.14291,88764.0,88751.0,0.01126747]
[1766358180089,0.14291,88764.0,88749.0,0.06760578]
[1766358180090,0.14291,88764.0,88749.0,0.01126773]
[1766358180325,0.14291,88764.0,88709.0,0.51039556]
[1766358180326,0.21928,88766.0,88738.0,0.00028946]
[1766358180327,0.01126684,88756.0,88738.0,0.00028946]
[1766358180474,0.00572,88755.0,88738.0,0.01155858]
[1766358180695,0.00572,88755.0,88739.0,0.011269]
[1766358180840,0.00572,88755.0,88744.0,0.01126836]
[1766358181288,0.00572,88755.0,88738.0,0.00028946]
[1766358181491,0.01126785,88748.0,88738.0,0.00028946]
[1766358181690,0.01126785,88748.0,88732.0,0.01126989]